[Event "Memorial Zita 2019"]
[Site "Prague"]
[Date "2019.06.23"]
[Round "2.1"]
[White "Netusil, Miloslav"]
[Black "Kiss, Pal"]
[Result "0-1"]
[ECO "B30"]
[WhiteElo "2189"]
[BlackElo "2278"]
[Annotator "ChessBase"]
[PlyCount "138"]
[EventDate "2019.06.23"]
[EventType "tourn"]
[EventCountry "CZE"]
[SourceTitle "playchess.com"]
[Source "ChessBase"]
[SourceQuality "1"]
[TimeControl "5400+30"]

1. e4 {[%emt 0:00:00]} c5 {[%emt 0:05:06]} 2. Nf3 {[%emt 0:00:00]} Nc6 {[%emt 0:00:23]} 3. b4 {[%emt 0:00:21]} cxb4 {[%emt 0:01:15]} 4. d4 {[%emt 0:00:09]} d5 {[%emt 0:00:27]} 5. exd5 {[%emt 0:00:10]} Qxd5 {[%emt 0:00:07]} 6. c4 {[%emt 0:00:07]} bxc3 {[%emt 0:00:23]} 7. Nxc3 {[%emt 0:00:07]} Qa5 {[%emt 0:00:05]} 8. Bd2 {[%emt 0:00:16]} e6 {[%emt 0:07:13]} 9. Bc4 {[%emt 0:00:07]} Bb4 {[%emt 0:02:26]} 10. Qb3 {[%emt 0:00:07]} Nf6 {[%emt 0:02:06]} 11. O-O {[%emt 0:02:03]} O-O {[%emt 0:00:45]} 12. a3 {[%emt 0:00:51]} Bxc3 {[%emt 0:01:27]} 13. Bxc3 {[%emt 0:00:05]} Qd8 {[%emt 0:01:12]} 14. Rad1 {[%emt 0:09:17]} Na5 {[%emt 0:11:08]} 15. Bxa5 {[%emt 0:00:43]} Qxa5 {[%emt 0:00:10]} 16. Ne5 {[%emt 0:00:54]} Rd8 {[%emt 0:20:01]} 17. Rfe1 {[%emt 0:07:11]} Qb6 {[%emt 0:04:54]} 18. Qf3 {[%emt 0:05:01]} Bd7 {[%emt 0:12:53]} 19. g4 {[%emt 0:03:26]} Be8 {[%emt 0:03:18]} 20. g5 {[%emt 0:09:10]} Nd7 {[%emt 0:02:25]} 21. Ng4 {[%emt 0:02:38]} Qc6 {[%emt 0:01:23]} 22. Qd3 {[%emt 0:02:25]} Rac8 {[%emt 0:01:43]} 23. Bb5 {[%emt 0:06:54]} Qc2 {[%emt 0:09:34]} 24. Qg3 {[%emt 0:01:30]} Qf5 {[%emt 0:03:18]} 25. d5 {[%emt 0:08:12]} Qxg5 {[%emt 0:02:19]} 26. h4 {[%emt 0:03:27]} Qe7 {[%emt 0:00:27]} 27. Re3 {[%emt 0:05:55]} Kh8 {[%emt 0:01:32]} 28. Rde1 {[%emt 0:02:53]} Nf8 {[%emt 0:01:58]} 29. Bxe8 {[%emt 0:00:27]} Qxe8 {[%emt 0:00:35]} 30. dxe6 {[%emt 0:01:42]} fxe6 {[%emt 0:00:16]} 31. Ne5 {[%emt 0:00:24]} Qh5 {[%emt 0:01:04]} 32. Qf4 {[%emt 0:02:32]} Rd1 {[%emt 0:01:45]} 33. Kh2 {[%emt 0:04:47]} Rxe1 {[%emt 0:00:34]} 34. Rxe1 {[%emt 0:00:04]} Ng6 {[%emt 0:00:54]} 35. Nxg6+ {[%emt 0:00:34]} Qxg6 {[%emt 0:00:13]} 36. Rc1 {[%emt 0:00:10]} Qe8 {[%emt 0:00:54]} 37. Re1 {[%emt 0:00:20]} Qc6 {[%emt 0:00:23]} 38. Re5 {[%emt 0:00:36]} b6 {[%emt 0:00:51]} 39. Qe3 {[%emt 0:00:37]} Qd6 {[%emt 0:00:17]} 40. Kg2 {[%emt 0:00:12]} Rc6 {[%emt 0:00:22]} 41. Qf4 {[%emt 0:02:33]} h6 {[%emt 0:00:14]} 42. Qe3 {[%emt 0:00:06]} Qe7 {[%emt 0:00:17]} 43. Qe4 {[%emt 0:00:21]} Rd6 {[%emt 0:01:00]} 44. Qa8+ {[%emt 0:00:08]} Kh7 {[%emt 0:00:13]} 45. Qe4+ {[%emt 0:00:20]} Kh8 {[%emt 0:00:01]} 46. Qa8+ {[%emt 0:00:08]} Kh7 {[%emt 0:00:05]} 47. Qe4+ {[%emt 0:00:07]} Kg8 {[%emt 0:00:52]} 48. Qa8+ {[%emt 0:00:13]} Rd8 {[%emt 0:00:55]} 49. Qe4 {[%emt 0:01:56]} Re8 {[%emt 0:01:11]} 50. a4 {[%emt 0:01:02]} Qf6 {[%emt 0:00:18]} 51. h5 {[%emt 0:02:57]} Rf8 {[%emt 0:00:41]} 52. Qe3 {[%emt 0:01:02]} Qf4 {[%emt 0:00:44]} 53. Qe2 {[%emt 0:01:56]} Qxa4 {[%emt 0:01:07]} 54. Rxe6 {[%emt 0:00:09]} Qf4 {[%emt 0:00:10]} 55. Re7 {[%emt 0:01:09]} Ra8 {[%emt 0:01:02]} 56. Kf1 {[%emt 0:05:32]} a5 {[%emt 0:00:23]} 57. Qe6+ {[%emt 0:00:38]} Kh8 {[%emt 0:00:05]} 58. Rf7 {[%emt 0:02:53]} Qc1+ {[%emt 0:00:11]} 59. Kg2 {[%emt 0:00:04]} Qg5+ {[%emt 0:00:13]} 60. Kf1 {[%emt 0:00:05]} Qxh5 {[%emt 0:00:29]} 61. Rd7 {[%emt 0:00:46]} Qb5+ {[%emt 0:00:14]} 62. Kg1 {[%emt 0:00:16]} Qg5+ {[%emt 0:00:27]} 63. Kf1 {[%emt 0:00:05]} Qb5+ {[%emt 0:00:21]} 64. Kg1 {[%emt 0:00:06]} a4 {[%emt 0:00:37]} 65. Rc7 {[%emt 0:01:33]} Qb1+ {[%emt 0:00:42]} 66. Kh2 {[%emt 0:00:17]} Rf8 {[%emt 0:00:38]} 67. Kg2 {[%emt 0:00:32]} a3 {[%emt 0:00:49]} 68. Qg4 {[%emt 0:01:26]} Qb2 {[%emt 0:00:19]} 69. Kh3 {[%emt 0:00:18]} a2 {[%emt 0:00:34]} 0-1

[Event "Memorial Zita 2019"]
[Site "Prague"]
[Date "2019.06.23"]
[Round "2.2"]
[White "Novy, Filip"]
[Black "Fedorov, Evgueny"]
[Result "1-0"]
[ECO "C26"]
[WhiteElo "2170"]
[BlackElo "2250"]
[Annotator "NA"]
[PlyCount "33"]
[EventDate "2019.06.23"]
[EventType "tourn"]
[EventCountry "CZE"]
[SourceTitle "playchess.com"]
[Source "ChessBase"]
[SourceQuality "1"]
[TimeControl "5400+30"]

1. e4 {[%emt 1:30:30]} Nf6 {[%emt 1:30:30]} 2. Nc3 {[%emt 0:00:30]} d5 {[%emt 0:00:30]} 3. exd5 {[%emt 0:00:30]} Nxd5 {[%emt 0:00:30]} 4. g3 {[%emt 0:00:30]} e5 {[%emt 0:00:30]} 5. Bg2 {[%emt 0:00:30]} Be6 {[%emt 0:00:30]} 6. Nge2 {[%emt 0:00:30]} c5 {[%emt 0:00:30]} 7. O-O {[%emt 0:00:30]} Nc6 {[%emt 0:00:30]} 8. f4 {[%emt 0:00:30]} exf4 {[%emt 0:00:30]} 9. Bxd5 {[%emt 0:00:30]} Bxd5 {[%emt 0:00:30]} 10. Nxf4 {[%emt 0:00:30]} Bc4 {[%emt 0:00:30]} 11. d3 {[%emt 0:00:30]} Ba6 {[%emt 0:00:30]} 12. Nfd5 {[%emt 0:00:30]} Be7 {[%emt 0:00:30]} 13. Qg4 {[%emt 0:00:30]} Kf8 {[%emt 0:00:30]} 14. Bh6 {[%emt 0:00:30]} Rg8 {[%emt 0:00:30]} 15. Qh5 {[%emt 0:00:30]} Ne5 {[%emt 0:00:30]} 16. Rae1 {[%emt 0:00:30]} gxh6 {[%emt 0:00:30]} 17. Rxe5 {[%emt 0:00:30]} 1-0

[Event "Memorial Zita 2019"]
[Site "Prague"]
[Date "2019.06.23"]
[Round "2.3"]
[White "Vokoun, Jan"]
[Black "Trickov, Vasil"]
[Result "1/2-1/2"]
[ECO "B21"]
[WhiteElo "2072"]
[BlackElo "2319"]
[Annotator "NA"]
[PlyCount "73"]
[EventDate "2019.06.23"]
[EventType "tourn"]
[EventCountry "CZE"]
[SourceTitle "playchess.com"]
[Source "ChessBase"]
[SourceQuality "1"]
[TimeControl "5400+30"]

1. e4 {[%emt 0:00:00]} c5 {[%emt 0:14:40]} 2. Be2 {[%emt 0:00:00]} d6 {[%emt 0:01:22]} 3. f4 {[%emt 0:00:00]} Nc6 {[%emt 0:02:15]} 4. Nf3 {[%emt 0:00:15]} g6 {[%emt 0:00:43]} 5. O-O {[%emt 0:01:07]} Bg7 {[%emt 0:01:12]} 6. c3 {[%emt 0:00:33]} Bg4 {[%emt 0:03:41]} 7. Na3 {[%emt 0:04:40]} e6 {[%emt 0:02:25]} 8. Qe1 {[%emt 0:04:12]} Nge7 {[%emt 0:04:19]} 9. Qh4 {[%emt 0:01:28]} Bxf3 {[%emt 0:06:00]} 10. Rxf3 {[%emt 0:02:07]} a6 {[%emt 0:03:13]} 11. Nc2 {[%emt 0:11:46]} b5 {[%emt 0:15:13]} 12. a3 {[%emt 0:11:26]} f5 {[%emt 0:07:20]} 13. exf5 {[%emt 0:09:11]} Nxf5 {[%emt 0:03:10]} 14. Qe1 {[%emt 0:05:55]} O-O {[%emt 0:06:55]} 15. a4 {[%emt 0:05:17]} Qb6 {[%emt 0:04:46]} 16. g4 {[%emt 0:03:00]} Nfe7 {[%emt 0:01:52]} 17. Bf1 {[%emt 0:03:58]} c4+ {[%emt 0:04:12]} 18. Kg2 {[%emt 0:02:08]} e5 {[%emt 0:02:47]} 19. axb5 {[%emt 0:00:09]} axb5 {[%emt 0:00:10]} 20. Rxa8 {[%emt 0:00:15]} Rxa8 {[%emt 0:00:24]} 21. d3 {[%emt 0:04:12]} d5 {[%emt 0:02:23]} 22. Rf2 {[%emt 0:04:27]} Rf8 {[%emt 0:04:07]} 23. dxc4 {[%emt 0:06:01]} bxc4 {[%emt 0:01:08]} 24. Qd1 {[%emt 0:03:36]} exf4 {[%emt 0:02:32]} 25. Bxf4 {[%emt 0:01:01]} Be5 {[%emt 0:01:23]} 26. Be3 {[%emt 0:03:59]} Qxb2 {[%emt 0:01:20]} 27. Nd4 {[%emt 0:06:21]} Rxf2+ {[%emt 0:00:53]} 28. Bxf2 {[%emt 0:00:01]} Nxd4 {[%emt 0:01:01]} 29. cxd4 {[%emt 0:00:02]} Bf6 {[%emt 0:00:12]} 30. Kg1 {[%emt 0:01:01]} Nc6 {[%emt 0:01:47]} 31. Qf3 {[%emt 0:03:01]} Bxd4 {[%emt 0:01:19]} 32. Qxd5+ {[%emt 0:00:07]} Kf8 {[%emt 0:00:17]} 33. Bxd4 {[%emt 0:00:15]} Qxd4+ {[%emt 0:00:49]} 34. Qxd4 {[%emt 0:00:07]} Nxd4 {[%emt 0:00:36]} 35. Bxc4 {[%emt 0:00:01]} Nf3+ {[%emt 0:00:04]} 36. Kg2 {[%emt 0:00:20]} Ne5 {[%emt 0:00:10]} 37. Be2 {[%emt 0:00:10]} 1/2-1/2

[Event "Memorial Zita 2019"]
[Site "Prague"]
[Date "2019.06.23"]
[Round "2.4"]
[White "Frolov, Artur"]
[Black "Neckar, Lubomir"]
[Result "1-0"]
[ECO "B04"]
[WhiteElo "2453"]
[BlackElo "2285"]
[Annotator "RC"]
[PlyCount "63"]
[EventDate "2019.06.23"]
[EventType "tourn"]
[EventCountry "CZE"]
[SourceTitle "playchess.com"]
[Source "ChessBase"]
[SourceQuality "1"]
[TimeControl "5400+30"]

1. e4 {[%emt 0:00:00]} Nf6 {[%emt 0:00:00]} 2. e5 {[%emt 0:00:00]} Nd5 {[%emt 0:00:00]} 3. d4 {[%emt 1:31:30]} d6 {[%emt 1:31:30]} 4. Nf3 {[%emt 0:00:30]} dxe5 {[%emt 0:00:30]} 5. Nxe5 c6 6. Nd2 g6 7. Ndc4 Bg7 8. Be2 O-O 9. O-O Qc7 10. Bf3 Rd8 11. Qe2 Be6 12. Rd1 Nd7 13. Nxd7 Rxd7 14. Ne5 Rdd8 15. c4 Nb6 16. b3 Rxd4 17. Rxd4 Bxe5 18. Bb2 Bxd4 19. Bxd4 Rd8 20. Bc5 Nc8 21. h4 b6 22. Bb4 c5 23. Bc3 Qf4 24. g3 Qf5 25. Re1 h5 26. Be4 Qg4 27. Qe3 Kh7 28. Bd2 Bf5 29. Qh6+ Kg8 30. Bc3 f6 31. Bxf6 exf6 32. Bd5+ 1-0

[Event "Memorial Zita 2019"]
[Site "Prague"]
[Date "2019.06.23"]
[Round "2.5"]
[White "Semenova, Elena"]
[Black "Pribylova, Sofie"]
[Result "1-0"]
[ECO "B20"]
[WhiteElo "2255"]
[BlackElo "2069"]
[Annotator "NA"]
[PlyCount "63"]
[EventDate "2019.06.23"]
[EventType "tourn"]
[EventCountry "CZE"]
[SourceTitle "playchess.com"]
[Source "ChessBase"]
[SourceQuality "1"]
[TimeControl "5400+30"]

1. e4 {[%emt 0:00:00]} c5 {[%emt 0:02:18]} 2. Ne2 {[%emt 0:00:00]} d6 {[%emt 0:00:39]} 3. g3 {[%emt 0:00:00]} g6 {[%emt 0:09:21]} 4. Bg2 {[%emt 0:00:31]} Bg7 {[%emt 0:00:20]} 5. c3 {[%emt 0:03:16]} e6 {[%emt 0:05:36]} 6. d4 {[%emt 0:00:35]} Qc7 {[%emt 0:05:42]} 7. Na3 {[%emt 0:08:55]} Ne7 {[%emt 0:02:10]} 8. dxc5 {[%emt 0:01:29]} Qxc5 {[%emt 0:05:08]} 9. Be3 {[%emt 0:00:44]} Qc6 {[%emt 0:01:01]} 10. Nd4 {[%emt 0:01:31]} Bxd4 {[%emt 0:03:45]} 11. cxd4 {[%emt 0:02:13]} O-O {[%emt 0:01:00]} 12. O-O {[%emt 0:04:54]} Qd7 {[%emt 0:04:31]} 13. Nc4 {[%emt 0:07:03]} Nbc6 {[%emt 0:04:00]} 14. Bh6 {[%emt 0:19:04]} Rd8 {[%emt 0:03:16]} 15. Ne3 {[%emt 0:07:48]} e5 {[%emt 0:04:04]} 16. Qf3 {[%emt 0:01:45]} f5 {[%emt 0:00:43]} 17. dxe5 {[%emt 0:01:25]} Nxe5 {[%emt 0:04:46]} 18. Qd1 {[%emt 0:00:54]} Nf7 {[%emt 0:01:08]} 19. Nd5 {[%emt 0:00:50]} Nxd5 {[%emt 0:04:08]} 20. Qxd5 {[%emt 0:00:09]} fxe4 {[%emt 0:17:20]} 21. Bf4 {[%emt 0:03:04]} Qg4 {[%emt 0:04:37]} 22. Qxe4 {[%emt 0:01:44]} d5 {[%emt 0:03:34]} 23. Qd4 {[%emt 0:00:28]} Ng5 {[%emt 0:06:44]} 24. Qf6 {[%emt 0:05:31]} Ne6 {[%emt 0:00:45]} 25. Be5 {[%emt 0:03:30]} Qh5 {[%emt 0:02:21]} 26. Rac1 {[%emt 0:00:50]} Rf8 {[%emt 0:00:33]} 27. Rxc8 {[%emt 0:00:34]} Rfxc8 {[%emt 0:01:01]} 28. Qxe6+ {[%emt 0:00:05]} Kf8 {[%emt 0:00:10]} 29. Qf6+ {[%emt 0:01:01]} Ke8 {[%emt 0:00:07]} 30. Bxd5 {[%emt 0:01:40]} Qf5 {[%emt 0:00:21]} 31. Bf7+ {[%emt 0:00:15]} Kd7 {[%emt 0:00:13]} 32. Qd6# {[%emt 0:00:02]} 1-0

[Event "Memorial Zita 2019"]
[Site "Prague"]
[Date "2019.06.23"]
[Round "3.1"]
[White "Pribylova, Sofie"]
[Black "Netusil, Miloslav"]
[Result "0-1"]
[ECO "D02"]
[WhiteElo "2069"]
[BlackElo "2189"]
[Annotator "NA"]
[PlyCount "94"]
[EventDate "2019.06.23"]
[EventType "tourn"]
[EventCountry "CZE"]
[SourceTitle "playchess.com"]
[Source "ChessBase"]
[SourceQuality "1"]
[TimeControl "5400+30"]

1. d4 {[%emt 0:00:00]} d5 {[%emt 0:00:00]} 2. Bf4 {[%emt 0:00:00]} Bf5 {[%emt 0:00:54]} 3. e3 {[%emt 0:01:05]} e6 {[%emt 0:00:05]} 4. Nf3 {[%emt 0:02:11]} Bd6 {[%emt 0:00:31]} 5. Bxd6 Qxd6 {[%emt 0:00:20]} 6. a3 {[%emt 0:06:54]} Nd7 {[%emt 0:03:34]} 7. Bd3 {[%emt 0:02:02]} Bxd3 8. Qxd3 {[%emt 0:00:18]} Ngf6 {[%emt 0:00:18]} 9. O-O {[%emt 0:01:31]} O-O {[%emt 0:00:38]} 10. c4 {[%emt 0:02:49]} c6 11. Nc3 {[%emt 0:01:08]} Rfe8 {[%emt 0:04:57]} 12. Rfd1 {[%emt 0:02:56]} e5 {[%emt 0:01:50]} 13. dxe5 {[%emt 0:02:02]} Nxe5 {[%emt 0:00:27]} 14. Nxe5 {[%emt 0:00:59]} Qxe5 {[%emt 0:00:09]} 15. h3 {[%emt 0:02:15]} Rad8 {[%emt 0:06:31]} 16. cxd5 {[%emt 0:14:01]} Nxd5 {[%emt 0:00:25]} 17. e4 {[%emt 0:18:07]} Nxc3 {[%emt 0:00:25]} 18. Qxc3 {[%emt 0:02:41]} Qxe4 {[%emt 0:03:18]} 19. Rxd8 {[%emt 0:01:22]} Rxd8 {[%emt 0:00:07]} 20. Re1 {[%emt 0:00:27]} Qd5 {[%emt 0:00:10]} 21. Re5 {[%emt 0:02:13]} Qd1+ {[%emt 0:06:01]} 22. Re1 {[%emt 0:10:14]} Qd6 {[%emt 0:01:22]} 23. b4 {[%emt 0:08:33]} b6 {[%emt 0:08:43]} 24. Qe3 {[%emt 0:03:25]} Kf8 {[%emt 0:04:16]} 25. Qe4 {[%emt 0:00:52]} h6 {[%emt 0:10:33]} 26. Qh7 {[%emt 0:00:49]} f6 {[%emt 0:00:08]} 27. Re3 {[%emt 0:02:19]} Qd5 {[%emt 0:04:06]} 28. Rg3 {[%emt 0:01:04]} Qf7 {[%emt 0:00:12]} 29. Rc3 {[%emt 0:02:07]} Rd6 {[%emt 0:01:06]} 30. Re3 {[%emt 0:02:15]} Rd8 {[%emt 0:06:18]} 31. Rc3 {[%emt 0:00:03]} Rc8 {[%emt 0:01:43]} 32. Qf5 {[%emt 0:00:48]} Qc7 {[%emt 0:01:26]} 33. Rd3 {[%emt 0:02:23]} Rd8 {[%emt 0:00:57]} 34. Rg3 {[%emt 0:00:16]} Rd1+ {[%emt 0:00:30]} 35. Kh2 {[%emt 0:00:04]} Rd5 {[%emt 0:00:24]} 36. Qh7 {[%emt 0:04:31]} Rg5 {[%emt 0:00:20]} 37. h4 {[%emt 0:00:20]} Rxg3 {[%emt 0:00:23]} 38. fxg3 {[%emt 0:00:04]} c5 {[%emt 0:00:13]} 39. Qc2 {[%emt 0:00:16]} c4 {[%emt 0:00:16]} 40. b5 {[%emt 0:00:15]} c3 {[%emt 0:00:25]} 41. a4 {[%emt 0:00:23]} Qc5 {[%emt 0:00:28]} 42. Qd3 {[%emt 0:03:11]} c2 {[%emt 0:01:16]} 43. Qd8+ {[%emt 0:00:02]} Kf7 {[%emt 0:00:06]} 44. Qd7+ {[%emt 0:00:11]} Kg8 {[%emt 0:00:46]} 45. Qe8+ {[%emt 0:02:26]} Kh7 {[%emt 0:00:08]} 46. h5 {[%emt 0:00:22]} c1=Q {[%emt 0:00:55]} 47. Qg6+ {[%emt 0:00:41]} Kg8 {[%emt 0:00:08]} 0-1

[Event "Memorial Zita 2019"]
[Site "Prague"]
[Date "2019.06.23"]
[Round "3.2"]
[White "Neckar, Lubomir"]
[Black "Semenova, Elena"]
[Result "0-1"]
[ECO "D02"]
[WhiteElo "2285"]
[BlackElo "2255"]
[Annotator "ChessBase"]
[PlyCount "46"]
[EventDate "2019.06.23"]
[EventType "tourn"]
[EventCountry "CZE"]
[SourceTitle "playchess.com"]
[Source "ChessBase"]
[SourceQuality "1"]
[TimeControl "5400+30"]

1. Nf3 {[%emt 1:30:30]} d5 2. g3 Nd7 3. d4 b5 4. Bg2 Bb7 5. O-O e6 6. b3 Ngf6 7. Bb2 {[%emt 0:03:00]} Be7 {[%emt 1:33:30]} 8. Nbd2 {[%emt 0:00:30]} Rb8 {[%emt 0:00:30]} 9. e3 {[%emt 0:00:30]} O-O {[%emt 0:00:30]} 10. Qe2 {[%emt 0:00:30]} Qc8 {[%emt 0:00:30]} 11. Ne5 {[%emt 0:00:30]} Re8 {[%emt 0:00:30]} 12. Rfd1 {[%emt 0:00:30]} c5 {[%emt 0:00:30]} 13. dxc5 {[%emt 0:00:30]} Bxc5 {[%emt 0:00:30]} 14. Qxb5 {[%emt 0:00:30]} Bd6 {[%emt 0:00:30]} 15. Nxd7 {[%emt 0:00:30]} Nxd7 {[%emt 0:00:30]} 16. c3 {[%emt 0:00:30]} Ba6 {[%emt 0:00:30]} 17. Qa5 {[%emt 0:00:30]} Nc5 {[%emt 0:00:30]} 18. Bf1 {[%emt 0:00:30]} Nd3 {[%emt 0:00:30]} 19. Bxd3 {[%emt 0:00:30]} Bxd3 {[%emt 0:00:30]} 20. Qa4 {[%emt 0:00:30]} e5 {[%emt 0:00:30]} 21. Nf3 {[%emt 0:00:30]} Be2 {[%emt 0:00:30]} 22. Rxd5 {[%emt 0:00:30]} Bxf3 {[%emt 0:00:30]} 23. Rxd6 {[%emt 0:00:30]} Qh3 {[%emt 0:00:30]} 0-1

[Event "Memorial Zita 2019"]
[Site "Prague"]
[Date "2019.06.23"]
[Round "3.4"]
[White "Fedorov, Evgueny"]
[Black "Vokoun, Jan"]
[Result "1-0"]
[ECO "B41"]
[WhiteElo "2250"]
[BlackElo "2072"]
[Annotator "ChessBase"]
[PlyCount "105"]
[EventDate "2019.06.23"]
[EventType "tourn"]
[EventCountry "CZE"]
[SourceTitle "playchess.com"]
[Source "ChessBase"]
[SourceQuality "1"]
[TimeControl "5400+30"]

1. e4 c5 2. Nf3 a6 3. c4 e6 4. Nc3 Qc7 5. d4 cxd4 6. Nxd4 Nf6 7. f4 Bb4 8. Bd3 d6 9. Qa4+ Nc6 10. Nxc6 Bxc3+ 11. bxc3 Bd7 12. Qc2 Bxc6 13. O-O Nd7 14. Be3 Qa5 15. Rae1 e5 16. Rf3 exf4 17. Bxf4 Ne5 18. Rg3 g6 19. Bg5 Rc8 20. Bf6 Rf8 21. Bg5 h6 22. Bf6 Bd7 23. Be2 {[%emt 0:10:32]} Be6 {[%emt 0:10:35]} 24. Qd2 {[%emt 0:00:30]} Qc5+ {[%emt 0:00:30]} 25. Qd4 {[%emt 0:00:30]} Bxc4 {[%emt 0:00:30]} 26. Bg4 {[%emt 0:00:30]} Nxg4 {[%emt 0:00:30]} 27. Rxg4 {[%emt 0:00:30]} Bxa2 {[%emt 0:00:30]} 28. Rd1 {[%emt 0:00:30]} Be6 {[%emt 0:00:30]} 29. Qxc5 {[%emt 0:00:30]} dxc5 {[%emt 0:00:30]} 30. Rg3 {[%emt 0:00:30]} c4 {[%emt 0:00:30]} 31. Re3 {[%emt 0:00:30]} Bd7 {[%emt 0:00:30]} 32. Ree1 {[%emt 0:00:30]} Rc6 {[%emt 0:00:30]} 33. e5 {[%emt 0:00:30]} g5 {[%emt 0:00:30]} 34. Re4 {[%emt 0:00:30]} Rg8 {[%emt 0:00:30]} 35. Red4 {[%emt 0:00:30]} Rc7 {[%emt 0:00:30]} 36. e6 {[%emt 0:00:30]} fxe6 {[%emt 0:00:30]} 37. Be5 {[%emt 0:00:30]} Rc5 {[%emt 0:00:30]} 38. Rxd7 {[%emt 0:00:30]} Rxe5 {[%emt 0:00:30]} 39. Rd8+ {[%emt 0:00:30]} Kf7 {[%emt 0:00:30]} 40. R1d7+ {[%emt 0:00:30]} Kf6 {[%emt 0:00:30]} 41. Rxg8 {[%emt 0:00:30]} Re3 {[%emt 0:00:30]} 42. Rxb7 {[%emt 0:00:30]} Rxc3 {[%emt 0:00:30]} 43. Ra7 {[%emt 0:00:30]} Ra3 {[%emt 0:00:30]} 44. Rc8 {[%emt 0:00:30]} c3 {[%emt 0:00:30]} 45. Rac7 {[%emt 0:00:30]} Ra1+ {[%emt 0:00:30]} 46. Kf2 {[%emt 0:00:30]} Ra2+ {[%emt 0:00:30]} 47. Kg3 {[%emt 0:00:30]} h5 {[%emt 0:00:30]} 48. h3 {[%emt 0:00:30]} e5 {[%emt 0:00:30]} 49. Rxc3 {[%emt 0:00:30]} h4+ {[%emt 0:00:30]} 50. Kf3 {[%emt 0:00:30]} e4+ {[%emt 0:00:30]} 51. Kxe4 {[%emt 0:00:30]} Rxg2 {[%emt 0:00:30]} 52. R8c6+ {[%emt 0:00:30]} Kg7 {[%emt 0:00:30]} 53. Rxa6 {[%emt 0:00:30]} 1-0

[Event "Memorial Zita 2019"]
[Site "Prague"]
[Date "2019.06.23"]
[Round "3.5"]
[White "Kiss, Pal"]
[Black "Novy, Filip"]
[Result "0-1"]
[ECO "E95"]
[WhiteElo "2278"]
[BlackElo "2170"]
[Annotator "ChessBase"]
[PlyCount "106"]
[EventDate "2019.06.23"]
[EventType "tourn"]
[EventCountry "CZE"]
[SourceTitle "playchess.com"]
[Source "ChessBase"]
[SourceQuality "1"]
[TimeControl "5400+30"]

1. Nf3 {[%emt 0:00:00]} Nf6 {[%emt 0:02:33]} 2. c4 {[%emt 0:00:05]} g6 {[%emt 0:01:03]} 3. Nc3 {[%emt 0:01:00]} Bg7 {[%emt 0:00:03]} 4. d4 {[%emt 0:00:44]} O-O {[%emt 0:00:12]} 5. e4 {[%emt 0:00:21]} d6 {[%emt 0:00:18]} 6. Be2 {[%emt 0:01:00]} Na6 {[%emt 0:00:39]} 7. O-O {[%emt 0:01:08]} e5 {[%emt 0:00:26]} 8. Re1 exd4 {[%emt 0:15:19]} 9. Nxd4 {[%emt 0:01:59]} Nc5 {[%emt 0:00:18]} 10. f3 {[%emt 0:02:48]} a5 {[%emt 0:00:35]} 11. Ndb5 {[%emt 0:06:27]} b6 {[%emt 0:00:47]} 12. Be3 {[%emt 0:00:55]} Nfd7 {[%emt 0:00:52]} 13. Qd2 {[%emt 0:04:56]} Bb7 {[%emt 0:02:48]} 14. Bf1 {[%emt 0:03:40]} Re8 {[%emt 0:02:58]} 15. Rad1 {[%emt 0:02:57]} Rc8 {[%emt 0:03:00]} 16. Bd4 {[%emt 0:09:36]} h5 {[%emt 0:05:24]} 17. b3 {[%emt 0:04:58]} Bxd4+ {[%emt 0:01:12]} 18. Qxd4 {[%emt 0:01:44]} Ne5 {[%emt 0:00:52]} 19. Qf2 {[%emt 0:06:45]} Kh7 {[%emt 0:04:10]} 20. Be2 {[%emt 0:02:11]} Qf6 {[%emt 0:01:04]} 21. Nd5 {[%emt 0:03:35]} Bxd5 {[%emt 0:00:40]} 22. cxd5 {[%emt 0:00:26]} g5 {[%emt 0:01:32]} 23. Nd4 {[%emt 0:01:38]} g4 {[%emt 0:54:45]} 24. Nf5 {[%emt 0:11:40]} gxf3 {[%emt 0:00:00]} 25. gxf3 {[%emt 0:00:46]} Rg8+ {[%emt 0:00:00]} 26. Kh1 {[%emt 0:00:32]} Ng6 {[%emt 0:00:00]} 27. Qd4 {[%emt 0:07:02]} Qxd4 {[%emt 0:00:00]} 28. Nxd4 {[%emt 0:00:11]} Nf4 {[%emt 0:00:00]} 29. Rg1 {[%emt 0:01:06]} f5 {[%emt 0:00:00]} 30. Rxg8 {[%emt 0:06:01]} Rxg8 {[%emt 0:00:00]} 31. exf5 {[%emt 0:01:24]} Nh3 {[%emt 0:00:00]} 32. Rf1 {[%emt 0:00:55]} Kg7 {[%emt 0:00:00]} 33. Kg2 {[%emt 0:10:23]} Nf4+ {[%emt 0:00:00]} 34. Kg3 {[%emt 0:00:56]} Nxe2+ {[%emt 0:00:00]} 35. Nxe2 {[%emt 0:00:02]} Kf6+ {[%emt 0:00:00]} 36. Kf4 {[%emt 0:02:54]} Re8 {[%emt 0:00:00]} 37. Nc3 {[%emt 0:01:31]} Nd3+ {[%emt 0:00:00]} 38. Kg3 {[%emt 0:00:08]} Rg8+ {[%emt 0:00:00]} 39. Kh4 {[%emt 0:00:47]} Rg2 {[%emt 0:00:00]} 40. Kxh5 {[%emt 0:03:14]} Rxh2+ {[%emt 0:00:00]} 41. Kg4 {[%emt 0:00:10]} Rg2+ {[%emt 0:00:00]} 42. Kh4 {[%emt 0:01:00]} Kxf5 {[%emt 0:00:00]} 43. Ne4 {[%emt 0:00:31]} Kf4 {[%emt 0:00:00]} 44. Kh5 {[%emt 0:00:46]} Rxa2 {[%emt 0:00:00]} 45. Kg6 {[%emt 0:00:26]} Rb2 {[%emt 0:00:00]} 46. Rd1 {[%emt 0:00:42]} Ne5+ {[%emt 0:00:00]} 47. Kf6 {[%emt 0:00:28]} Rxb3 {[%emt 0:00:00]} 48. Rc1 {[%emt 0:00:43]} Rxf3 {[%emt 0:00:00]} 49. Ng5 {[%emt 0:00:39]} Ng4+ {[%emt 0:00:00]} 50. Kg6 {[%emt 0:00:13]} Rg3 {[%emt 0:00:00]} 51. Ne6+ {[%emt 0:00:26]} Ke5 {[%emt 0:00:00]} 52. Nxc7 {[%emt 0:00:18]} Ne3+ {[%emt 0:00:00]} 53. Kf7 {[%emt 0:00:14]} Nxd5 {[%emt 0:00:00]} 0-1

[Event "Memorial Zita 2019"]
[Site "Prague"]
[Date "2019.06.24"]
[Round "4.1"]
[White "Netusil, Miloslav"]
[Black "Novy, Filip"]
[Result "0-1"]
[ECO "A47"]
[WhiteElo "2189"]
[BlackElo "2170"]
[Annotator "NA"]
[PlyCount "54"]
[EventDate "2019.06.23"]
[EventType "tourn"]
[EventCountry "CZE"]
[SourceTitle "playchess.com"]
[Source "ChessBase"]
[SourceQuality "1"]
[TimeControl "5400+30"]

1. d4 {[%emt 0:17:42]} Nf6 {[%emt 0:00:00]} 2. Nf3 {[%emt 0:00:33]} e6 {[%emt 0:00:52]} 3. Bf4 {[%emt 0:01:40]} c5 {[%emt 0:00:26]} 4. e3 {[%emt 0:00:07]} Nc6 {[%emt 0:00:18]} 5. c3 {[%emt 0:00:14]} Be7 {[%emt 0:00:20]} 6. h3 {[%emt 0:00:07]} O-O {[%emt 0:00:21]} 7. Nbd2 {[%emt 0:00:14]} b6 {[%emt 0:00:17]} 8. Bd3 {[%emt 0:07:07]} Bb7 {[%emt 0:00:21]} 9. Bh2 {[%emt 0:03:03]} d5 {[%emt 0:01:25]} 10. O-O {[%emt 0:00:37]} Re8 {[%emt 0:01:35]} 11. Qe2 {[%emt 0:05:13]} Nd7 {[%emt 0:01:18]} 12. Rad1 {[%emt 0:01:04]} Bf6 {[%emt 0:01:19]} 13. e4 {[%emt 0:58:49]} cxd4 {[%emt 0:16:39]} 14. e5 {[%emt 0:00:00]} dxc3 {[%emt 0:01:55]} 15. exf6 {[%emt 0:00:00]} cxd2 {[%emt 0:00:04]} 16. fxg7 {[%emt 0:00:00]} e5 {[%emt 0:04:53]} 17. Bf5 {[%emt 0:00:00]} Nc5 {[%emt 0:02:16]} 18. Qxd2 {[%emt 0:00:00]} Qf6 {[%emt 0:00:27]} 19. Bb1 {[%emt 0:00:00]} e4 {[%emt 0:05:16]} 20. Nd4 {[%emt 0:00:00]} Nxd4 {[%emt 0:00:09]} 21. Qxd4 {[%emt 0:00:00]} Qxd4 {[%emt 0:00:02]} 22. Rxd4 {[%emt 0:00:00]} Kxg7 {[%emt 0:00:53]} 23. f3 {[%emt 0:00:00]} f5 {[%emt 0:00:51]} 24. g4 {[%emt 0:00:00]} Ne6 {[%emt 0:08:30]} 25. Rdd1 {[%emt 0:00:00]} Ng5 {[%emt 0:00:20]} 26. fxe4 {[%emt 0:00:00]} fxe4 {[%emt 0:00:23]} 27. Rf5 {[%emt 0:00:00]} Nf3+ {[%emt 0:00:42]} 0-1